[Event "Irish Championship 2020"]
[Site "Dublin"]
[Date "2020.08.08"]
[Round "8.13"]
[White "Moran, Darragh"]
[Black "McHugh, Kevin"]
[Result "1-0"]
[ECO "C06"]
[WhiteElo "1873"]
[BlackElo "2010"]
[Annotator "NA"]
[PlyCount "55"]
[EventDate "2020.08.01"]
[EventType "swiss"]
[EventCountry "IRL"]
[SourceTitle "playchess.com"]
[Source "ChessBase"]
[SourceQuality "1"]
[TimeControl "8100+35"]

{[%evp 8,54,33,36,32767,32767,32767,32767,32767,32767,32767,32767,45,16,43,26,33,25,39,25,181,158,188,120,417,32767,435,472,576,566,32767,653,621,481,32767,911,853,782,1664,994,892,651,32767,778,742,32767,32767,785,796]} 1. e4 {[%emt 0:04:40]} e6 {[%emt 0:00:00]} 2. d4 {[%emt 0:00:06]} d5 {[%emt 0:00:00]} 3. Nd2 {[%emt 0:00:02]} Nf6 {[%emt 0:00:00]} 4. e5 {[%emt 0:00:03]} Nfd7 {[%emt 0:00:00]} 5. Bd3 {[%emt 0:00:04]} c5 {[%emt 0:00:00]} 6. c3 {[%emt 0:00:03]} Nc6 {[%emt 0:00:03]} 7. Ne2 {[%emt 0:00:01]} cxd4 {[%emt 0:00:07]} 8. cxd4 {[%emt 0:00:02]} f6 {[%emt 0:00:09]} 9. Nf4 {[%emt 0:00:03]} Nxd4 {[%emt 0:00:10]} 10. Qh5+ {[%emt 0:00:10] Double Attack} Ke7 $1 {[%emt 0:03:05]} 11. exf6+ {[%emt 0:00:11]} Nxf6 {[%emt 0:00:50] [#]} 12. Ng6+ $1 {[%emt 0:00:09] Double Attack, Pin} hxg6 {[%emt 0:02:03]} 13. Qxh8 {[%emt 0:00:12]} e5 $2 {[%emt 0:00:46]} (13... Kf7 $11 {and Black is okay.}) 14. Bxg6 {[%emt 0:00:32]} e4 {[%emt 0:01:17]} 15. O-O {[%emt 0:00:30] C06: French Tarrasch: 3...Nf6 4 e5 Nfd7 5 Bd3 main lines.} Qa5 $2 {[%emt 0:01:34]} (15... Ne2+ 16. Kh1 Nf4) 16. Nb3 {[%emt 0:20:25]} Nxb3 {[%emt 0:21:01]} 17. axb3 {[%emt 0:02:14] [#]} Qc5 $146 {[%emt 0:03:39]} ({Much weaker is} 17... Qxa1 18. Bd2 $18) ({Predecessor:} 17... Qb6 18. Rd1 Qxb3 19. Be3 b6 20. Bd4 Be6 21. Qh4 a5 22. Rdc1 Kd7 23. Bxf6 gxf6 24. Qh7+ Be7 25. Rc7+ {1-0 (25) Pirrot,D (2415)-Zifroni,D (2490) Biel 1996}) 18. Bf4 {[%emt 0:07:36]} Bd7 {[%emt 0:01:32]} 19. Rac1 {[%emt 0:06:18]} Qb6 {[%emt 0:01:21]} 20. Rfd1 {[%emt 0:03:48]} Bc6 {[%emt 0:13:49]} 21. Be3 {[%emt 0:06:09]} Qd8 {[%emt 0:00:51]} 22. Qh3 {[%emt 1:34:32]} Nd7 {[%emt 0:02:36]} 23. Qh4+ {[%emt 0:00:00]} Nf6 {[%emt 0:01:14]} 24. Qf4 {[%emt 0:00:00]} Qb8 {[%emt 0:00:45]} 25. Bc5+ {[%emt 0:00:00]} Kd7 {[%emt 0:00:54]} 26. Qf5+ {[%emt 0:00:00]} Kc7 {[%emt 0:02:04]} 27. Qe5+ $18 {[%emt 0:00:00]} Kd7 {[%emt 0:00:09]} 28. Bf5+ {[%emt 0:00:00]} 1-0

[Event "Irish Championship 2020"]
[Site "Dublin"]
[Date "2020.08.08"]
[Round "8.14"]
[White "MacElligott, Gerard"]
[Black "Byrne, Alex"]
[Result "0-1"]
[ECO "D79"]
[WhiteElo "2020"]
[BlackElo "1976"]
[Annotator "ChessBase"]
[PlyCount "82"]
[EventDate "2020.08.01"]
[EventType "swiss"]
[EventCountry "IRL"]
[SourceTitle "playchess.com"]
[Source "ChessBase"]
[SourceQuality "1"]
[TimeControl "8100+35"]

1. d4 {[%emt 0:01:25]} d5 {[%emt 2:15:35]} 2. Nf3 {[%emt 0:01:54]} Nf6 {[%emt 0:00:35]} 3. g3 {[%emt 0:00:19]} g6 {[%emt 0:00:35]} 4. Bg2 Bg7 5. O-O {[%emt 0:02:15]} O-O {[%emt 0:01:10]} 6. c4 {[%emt 0:00:16]} c6 {[%emt 0:00:35]} 7. cxd5 {[%emt 0:07:52]} cxd5 {[%emt 0:00:35]} 8. Nc3 {[%emt 0:00:28]} Nc6 {[%emt 0:00:35]} 9. Ne5 {[%emt 0:00:38]} e6 {[%emt 0:00:35]} 10. Nxc6 {[%emt 0:08:02]} bxc6 {[%emt 0:00:00]} 11. Bf4 {[%emt 0:00:14]} Nd7 {[%emt 0:00:00]} 12. Qd2 {[%emt 0:16:31]} e5 {[%emt 0:01:45]} 13. dxe5 {[%emt 0:09:41]} Nxe5 {[%emt 0:00:35]} 14. Rac1 {[%emt 0:03:49]} Nc4 {[%emt 0:00:35]} 15. Qc2 {[%emt 0:07:51]} g5 {[%emt 0:00:35]} 16. Bd2 {[%emt 0:16:08]} Re8 {[%emt 0:00:35]} 17. Be1 {[%emt 0:02:45]} Ba6 {[%emt 0:00:35]} 18. e4 {[%emt 0:10:52]} d4 {[%emt 0:00:35]} 19. Rd1 {[%emt 0:03:17]} Rb8 {[%emt 0:00:35]} 20. b3 {[%emt 0:18:35]} Na3 {[%emt 0:00:35]} 21. Qc1 {[%emt 0:00:22]} Bxf1 {[%emt 0:00:35]} 22. Kxf1 {[%emt 0:34:36]} Nb5 {[%emt 0:00:00]} 23. Na4 {[%emt 0:00:00]} Qf6 {[%emt 0:01:10]} 24. Nc5 {[%emt 0:00:00]} Qe7 {[%emt 0:00:35]} 25. Na4 {[%emt 0:00:00]} Rec8 {[%emt 0:00:35]} 26. Bd2 {[%emt 0:00:00]} h6 {[%emt 0:00:35]} 27. Re1 {[%emt 0:00:00]} c5 {[%emt 0:00:35]} 28. Kg1 {[%emt 0:00:00]} c4 {[%emt 0:00:35]} 29. bxc4 {[%emt 0:00:00]} Nc3 {[%emt 0:00:35]} 30. Bxc3 {[%emt 0:00:00]} Rxc4 {[%emt 0:00:35]} 31. Nb2 {[%emt 0:00:00]} Rxc3 {[%emt 0:00:35]} 32. Qd2 {[%emt 0:00:00]} Qa3 {[%emt 0:00:35]} 33. Nd1 {[%emt 0:00:00]} Qc1 {[%emt 0:00:35]} 34. Qe2 {[%emt 0:01:16]} d3 {[%emt 0:00:35]} 35. Qg4 {[%emt 0:01:59]} Rc2 {[%emt 0:00:35]} 36. e5 {[%emt 0:00:56]} Qd2 {[%emt 0:00:00]} 37. Rf1 {[%emt 0:00:12]} Qe2 {[%emt 0:01:10]} 38. Qf5 {[%emt 0:01:36]} Rb5 {[%emt 0:00:35]} 39. Ne3 {[%emt 0:01:07]} Rxe5 {[%emt 0:00:35]} 40. Qh3 {[%emt 0:00:36]} Rxe3 {[%emt 0:00:35]} 41. fxe3 {[%emt 0:00:20]} g4 {[%emt 0:00:35]} 0-1

[Event "Irish Championship 2020"]
[Site "Dublin"]
[Date "2020.08.09"]
[Round "9.1"]
[White "Daly, Colm"]
[Black "O`Donnell, Conor"]
[Result "0-1"]
[ECO "E14"]
[WhiteElo "2248"]
[BlackElo "2304"]
[Annotator "ChessBase"]
[PlyCount "124"]
[EventDate "2020.08.01"]
[EventType "swiss"]
[EventCountry "IRL"]
[SourceTitle "playchess.com"]
[Source "ChessBase"]
[SourceQuality "1"]
[TimeControl "8100+35"]

1. d4 {[%emt 0:11:54]} e6 {[%emt 0:00:00]} 2. Nf3 {[%emt 0:07:02]} Nf6 {[%emt 0:02:03]} 3. c4 {[%emt 0:00:20]} d5 {[%emt 0:00:28]} 4. e3 {[%emt 0:00:16]} b6 {[%emt 0:03:37]} 5. Bd3 {[%emt 0:00:11]} Bb7 {[%emt 0:01:23]} 6. O-O {[%emt 0:00:11]} Bd6 {[%emt 0:00:52]} 7. b4 {[%emt 0:15:35]} dxc4 {[%emt 0:03:55]} 8. Bxc4 {[%emt 0:03:05]} O-O {[%emt 0:01:04]} 9. a3 {[%emt 0:00:16]} c5 {[%emt 0:12:03]} 10. dxc5 {[%emt 0:05:53]} bxc5 {[%emt 1:55:25]} 11. bxc5 {[%emt 0:00:27]} Bxc5 {[%emt 0:00:00]} 12. Bb2 {[%emt 0:02:26]} Nbd7 {[%emt 0:00:00]} 13. Nbd2 {[%emt 0:00:03]} Nb6 {[%emt 0:00:00]} 14. Be2 {[%emt 0:09:08]} Qe7 {[%emt 0:00:00]} 15. Nb3 {[%emt 0:09:17]} Rfd8 {[%emt 0:00:00]} 16. Qe1 {[%emt 0:00:09]} Bd6 {[%emt 0:00:00]} 17. Qa5 {[%emt 0:05:01]} Bd5 {[%emt 0:00:00]} 18. Nbd4 {[%emt 0:03:55]} Rac8 {[%emt 0:00:00]} 19. Rfc1 {[%emt 0:00:58]} Bc4 {[%emt 0:00:00]} 20. Qe1 {[%emt 0:03:51]} Qd7 {[%emt 0:00:00]} 21. Qf1 {[%emt 0:06:24]} Bxe2 {[%emt 0:00:00]} 22. Qxe2 {[%emt 0:04:41]} Na4 {[%emt 0:00:00]} 23. Nb5 {[%emt 0:06:54]} Be7 {[%emt 0:00:00]} 24. Bd4 {[%emt 0:01:48]} a6 {[%emt 0:00:00]} 25. Nc3 {[%emt 0:04:22]} Nxc3 {[%emt 0:00:00]} 26. Rxc3 {[%emt 0:01:10]} Qa4 {[%emt 0:00:00]} 27. h3 {[%emt 0:05:27]} Ne4 {[%emt 0:00:00]} 28. Rxc8 {[%emt 0:00:25]} Rxc8 {[%emt 0:00:00]} 29. Qd3 {[%emt 0:02:17]} Qc2 {[%emt 0:00:00]} 30. Qxc2 {[%emt 0:00:06]} Rxc2 {[%emt 0:00:00]} 31. Rb1 {[%emt 0:00:59]} f6 {[%emt 0:00:00]} 32. Rb2 {[%emt 0:08:46]} Rc1+ {[%emt 0:00:00]} 33. Kh2 {[%emt 0:00:02]} Bxa3 {[%emt 0:00:00]} 34. Ra2 {[%emt 0:05:00]} Bd6+ {[%emt 0:00:00]} 35. g3 {[%emt 0:00:01]} a5 {[%emt 0:00:00]} 36. Kg2 {[%emt 0:02:31]} a4 {[%emt 0:00:20]} 37. Ng1 {[%emt 0:09:56]} a3 {[%emt 0:01:16]} 38. Ne2 {[%emt 0:00:08]} Rb1 {[%emt 0:02:11]} 39. f3 {[%emt 0:01:35]} Ng5 {[%emt 0:00:30]} 40. h4 {[%emt 0:00:31]} Nf7 {[%emt 0:00:07]} 41. Nc3 {[%emt 0:04:37]} Rb3 {[%emt 0:00:04]} 42. Nd1 {[%emt 0:03:42]} Bb4 {[%emt 0:03:58]} 43. Kf2 {[%emt 0:01:34]} e5 {[%emt 0:00:12]} 44. Ba1 {[%emt 0:02:19]} Nd6 {[%emt 0:01:25]} 45. Ke2 {[%emt 0:00:11]} Nf5 {[%emt 0:02:13]} 46. g4 {[%emt 0:01:17]} Nxh4 {[%emt 0:00:03]} 47. Rc2 {[%emt 0:00:11]} Rb1 {[%emt 0:02:54]} 48. Bc3 {[%emt 0:01:44]} Bxc3 {[%emt 0:00:51]} 49. Nxc3 {[%emt 0:00:11]} Rb2 {[%emt 0:01:16]} 50. Rxb2 {[%emt 0:01:04]} axb2 {[%emt 0:00:02]} 51. Kf2 {[%emt 0:01:21]} Kf7 {[%emt 0:00:35]} 52. Kg3 {[%emt 0:01:09]} Ng6 {[%emt 0:00:11]} 53. Kf2 {[%emt 0:00:03]} Ke7 {[%emt 0:01:35]} 54. Ke2 {[%emt 0:00:05]} Nh4 {[%emt 0:00:44]} 55. Kf2 {[%emt 0:02:47]} Kd6 {[%emt 0:01:03]} 56. f4 {[%emt 0:00:51]} exf4 {[%emt 0:01:20]} 57. exf4 {[%emt 0:00:01]} Ng6 {[%emt 0:00:34]} 58. Ke3 {[%emt 0:00:15]} Ne7 {[%emt 0:01:21]} 59. Kf3 {[%emt 0:00:28]} Nd5 {[%emt 0:00:34]} 60. Nb1 {[%emt 0:00:02]} Kc5 {[%emt 0:00:33]} 61. Ke4 {[%emt 0:00:12]} Kc4 {[%emt 0:01:20]} 62. Na3+ {[%emt 0:01:07]} Kb3 {[%emt 0:00:24]} 0-1

[Event "Irish Championship 2020"]
[Site "Dublin"]
[Date "2020.08.09"]
[Round "9.2"]
[White "Melaugh, Shane"]
[Black "O`Gorman, Tom"]
[Result "0-1"]
[ECO "A36"]
[WhiteElo "2161"]
[BlackElo "2345"]
[Annotator "ChessBase"]
[PlyCount "88"]
[EventDate "2020.08.01"]
[EventType "swiss"]
[EventCountry "IRL"]
[SourceTitle "playchess.com"]
[Source "ChessBase"]
[SourceQuality "1"]
[TimeControl "8100+35"]

1. c4 {[%emt 0:09:54]} Nf6 {[%emt 0:00:00]} 2. Nc3 {[%emt 0:00:10]} g6 {[%emt 0:00:00]} 3. g3 {[%emt 0:00:34]} Bg7 {[%emt 0:00:00]} 4. Bg2 {[%emt 0:00:05]} O-O {[%emt 0:00:00]} 5. e4 {[%emt 0:00:53]} d6 {[%emt 0:00:12]} 6. Nge2 {[%emt 0:00:05]} c5 {[%emt 0:00:09]} 7. O-O {[%emt 0:00:06]} Nc6 {[%emt 0:00:08]} 8. a3 {[%emt 0:01:02]} Ne8 {[%emt 0:01:21]} 9. Rb1 {[%emt 0:00:34]} a5 {[%emt 0:00:20]} 10. f4 {[%emt 0:11:20]} Nc7 {[%emt 0:01:02]} 11. d3 {[%emt 0:01:36]} Rb8 {[%emt 0:01:40]} 12. a4 {[%emt 0:09:02]} Bg4 {[%emt 0:08:52]} 13. h3 {[%emt 0:03:36]} Bxe2 {[%emt 0:00:43]} 14. Qxe2 {[%emt 0:00:18]} Ne6 {[%emt 0:00:47]} 15. Be3 {[%emt 0:04:06]} Ned4 {[%emt 0:00:16]} 16. Qf2 {[%emt 0:00:25]} e6 {[%emt 0:01:27]} 17. Nb5 {[%emt 0:03:15]} f5 {[%emt 0:03:59]} 18. Kh2 {[%emt 0:02:46]} Qe7 {[%emt 0:04:17]} 19. Rfe1 {[%emt 0:04:03]} Kh8 {[%emt 0:02:35]} 20. Rbd1 {[%emt 0:04:53]} Rf7 {[%emt 0:03:08]} 21. e5 {[%emt 0:14:08]} dxe5 {[%emt 0:16:30]} 22. fxe5 {[%emt 0:00:47]} Bxe5 {[%emt 0:02:34]} 23. Bxc6 {[%emt 0:00:19]} bxc6 {[%emt 0:01:17]} 24. Nxd4 {[%emt 0:00:09]} Bxd4 {[%emt 0:00:45]} 25. Bxd4+ {[%emt 0:00:05]} cxd4 {[%emt 0:00:11]} 26. Qxd4+ {[%emt 0:00:03]} Kg8 {[%emt 0:04:50]} 27. Qe5 {[%emt 0:00:37]} Qb4 {[%emt 0:02:28]} 28. Re2 {[%emt 0:00:27]} Re8 {[%emt 0:04:55]} 29. Rde1 {[%emt 0:01:56]} Rd7 {[%emt 0:08:32]} 30. Re3 {[%emt 0:03:35]} Qxa4 {[%emt 0:35:14]} 31. Qc5 {[%emt 0:06:48]} Rxd3 {[%emt 0:01:56]} 32. Rxd3 {[%emt 0:01:45]} Qc2+ {[%emt 0:00:09]} 33. Kh1 {[%emt 0:00:07]} Qxd3 {[%emt 0:00:07]} 34. Qxc6 {[%emt 0:00:03]} Kf7 {[%emt 0:00:36]} 35. Qc7+ {[%emt 0:00:19]} Re7 {[%emt 0:06:20]} 36. Qf4 {[%emt 0:00:07]} e5 {[%emt 0:01:03]} 37. Qh4 {[%emt 0:02:47]} h5 {[%emt 0:02:58]} 38. g4 {[%emt 0:01:00]} Qxc4 {[%emt 0:01:53]} 39. Rg1 {[%emt 0:02:00]} Qe4+ {[%emt 0:00:56]} 40. Rg2 {[%emt 0:00:21]} Rc7 {[%emt 0:01:29]} 41. Qg5 {[%emt 0:00:15]} Rc2 {[%emt 0:01:21]} 42. gxf5 {[%emt 0:00:06]} Qxg2+ {[%emt 0:00:09]} 43. Qxg2 {[%emt 0:00:05]} Rxg2 {[%emt 0:00:07]} 44. Kxg2 {[%emt 0:00:04]} gxf5 {[%emt 0:00:07]} 0-1

[Event "Irish Championship 2020"]
[Site "Dublin"]
[Date "2020.08.09"]
[Round "9.3"]
[White "Kanyamarala, Tarun"]
[Black "Murray, David"]
[Result "1-0"]
[ECO "A57"]
[WhiteElo "2381"]
[BlackElo "2152"]
[Annotator "ChessBase"]
[PlyCount "81"]
[EventDate "2020.08.01"]
[EventType "swiss"]
[EventCountry "IRL"]
[SourceTitle "playchess.com"]
[Source "ChessBase"]
[SourceQuality "1"]
[TimeControl "8100+35"]

1. d4 {[%emt 0:00:00]} Nf6 {[%emt 0:00:00]} 2. c4 {[%emt 0:00:00]} c5 {[%emt 0:00:30]} 3. d5 {[%emt 0:01:02]} b5 {[%emt 0:00:07]} 4. cxb5 {[%emt 0:02:06]} a6 {[%emt 0:00:16]} 5. b6 {[%emt 0:00:55]} Qxb6 {[%emt 0:01:18]} 6. Nc3 {[%emt 0:00:29]} d6 {[%emt 0:01:12]} 7. e4 {[%emt 0:00:40]} g6 {[%emt 0:01:09]} 8. Be2 {[%emt 0:01:42]} Bg7 {[%emt 0:00:44]} 9. Nf3 {[%emt 0:02:09]} Bg4 {[%emt 0:05:00]} 10. Nd2 {[%emt 0:07:30]} Bxe2 {[%emt 0:00:41]} 11. Qxe2 {[%emt 0:00:02]} O-O {[%emt 0:03:46]} 12. Nc4 {[%emt 0:06:35]} Qd8 {[%emt 0:03:44]} 13. O-O {[%emt 0:02:27]} Nbd7 {[%emt 0:09:36]} 14. Bd2 {[%emt 0:13:27]} Ne8 {[%emt 0:03:14]} 15. a4 {[%emt 0:03:02]} Ne5 {[%emt 0:02:37]} 16. Ne3 {[%emt 0:01:53]} Nd7 {[%emt 0:03:31]} 17. b3 {[%emt 0:10:37]} Nc7 {[%emt 0:05:29]} 18. Nc4 {[%emt 0:09:44]} a5 {[%emt 0:02:41]} 19. Rad1 {[%emt 0:16:18]} Na6 {[%emt 0:03:57]} 20. Nb5 {[%emt 0:00:48]} Nb4 {[%emt 0:01:23]} 21. Bg5 {[%emt 0:00:45]} Ne5 {[%emt 0:12:14]} 22. Ne3 {[%emt 0:14:21]} Nd7 {[%emt 0:03:03]} 23. f4 {[%emt 0:06:26]} Nb6 {[%emt 0:06:04]} 24. e5 {[%emt 0:10:57]} Qd7 {[%emt 0:13:01]} 25. exd6 {[%emt 0:04:52]} exd6 {[%emt 0:00:29]} 26. f5 {[%emt 0:00:47]} Rfe8 {[%emt 0:04:05]} 27. Qf3 {[%emt 0:07:17]} Be5 {[%emt 0:29:21]} 28. Ng4 {[%emt 0:02:42]} c4 {[%emt 0:07:56]} 29. Bf6 {[%emt 0:11:52]} h5 {[%emt 0:02:40]} 30. Nxe5 {[%emt 0:01:31]} Rxe5 {[%emt 0:02:57]} 31. Bxe5 {[%emt 0:00:21]} dxe5 {[%emt 0:00:08]} 32. fxg6 {[%emt 0:00:19]} fxg6 {[%emt 0:06:38]} 33. Qf6 {[%emt 0:00:19]} N4xd5 {[%emt 0:01:24]} 34. Qxg6+ {[%emt 0:00:00]} Qg7 {[%emt 0:00:25]} 35. Qe6+ {[%emt 0:01:25]} Kh8 {[%emt 0:00:16]} 36. Rxd5 {[%emt 0:00:53]} Nxd5 {[%emt 0:00:31]} 37. Qxd5 {[%emt 0:00:03]} Rg8 {[%emt 0:00:12]} 38. bxc4 {[%emt 0:00:24]} h4 {[%emt 0:00:32]} 39. Rf5 {[%emt 0:00:26]} Qg4 {[%emt 0:01:08]} 40. Qxe5+ {[%emt 0:00:18]} Kh7 {[%emt 0:00:16]} 41. Qd5 {[%emt 0:01:27]} 1-0

[Event "Irish Championship 2020"]
[Site "Dublin"]
[Date "2020.08.09"]
[Round "9.4"]
[White "Fitzsimons, David"]
[Black "Flynn, Jacob"]
[Result "1-0"]
[ECO "B10"]
[WhiteElo "2334"]
[BlackElo "2114"]
[Annotator "ChessBase"]
[PlyCount "105"]
[EventDate "2020.08.01"]
[EventType "swiss"]
[EventCountry "IRL"]
[SourceTitle "playchess.com"]
[Source "ChessBase"]
[SourceQuality "1"]
[TimeControl "8100+35"]

1. e4 {[%emt 0:00:00]} c6 {[%emt 0:00:00]} 2. d3 {[%emt 0:00:00]} d5 {[%emt 0:00:00]} 3. Nd2 {[%emt 0:00:00]} e5 {[%emt 0:00:27]} 4. Ngf3 {[%emt 0:00:00]} Bd6 {[%emt 0:00:14]} 5. d4 {[%emt 0:00:00]} exd4 {[%emt 0:03:34]} 6. Bd3 {[%emt 0:00:13]} Ne7 {[%emt 0:13:05]} 7. O-O {[%emt 0:00:11]} O-O {[%emt 0:00:51]} 8. Nxd4 {[%emt 0:00:15]} Nd7 {[%emt 0:06:04]} 9. exd5 {[%emt 0:00:22]} Ne5 {[%emt 0:06:08]} 10. Ne4 {[%emt 0:01:05]} Nxd3 {[%emt 0:04:42]} 11. Qxd3 {[%emt 0:00:07]} Nxd5 {[%emt 0:00:32]} 12. Bg5 {[%emt 0:02:28]} Be7 {[%emt 0:10:07]} 13. Bxe7 {[%emt 0:00:30]} Nxe7 {[%emt 0:01:26]} 14. Rfe1 {[%emt 0:01:05]} Nf5 {[%emt 0:02:56]} 15. Rad1 {[%emt 0:08:21]} Nxd4 {[%emt 0:08:03]} 16. Qxd4 {[%emt 0:00:35]} Qxd4 {[%emt 0:12:23]} 17. Rxd4 {[%emt 0:00:14]} b6 {[%emt 0:00:33]} 18. h3 {[%emt 0:07:37]} h6 {[%emt 0:05:42]} 19. Rd6 {[%emt 0:02:06]} c5 {[%emt 0:00:41]} 20. Nc3 {[%emt 0:04:27]} Be6 {[%emt 0:01:04]} 21. Red1 {[%emt 0:03:50]} Rfc8 {[%emt 0:07:38]} 22. a4 {[%emt 0:12:46]} Kf8 {[%emt 0:06:48]} 23. Ne2 {[%emt 0:18:52]} g5 {[%emt 0:15:00]} 24. Nc3 {[%emt 0:20:31]} Ke7 {[%emt 0:04:54]} 25. Nb5 {[%emt 0:00:33]} a6 {[%emt 0:02:46]} 26. Nc3 {[%emt 0:00:06]} Rab8 {[%emt 0:00:22]} 27. a5 {[%emt 0:06:07]} bxa5 {[%emt 0:00:50]} 28. Rxa6 {[%emt 0:00:06]} Rxb2 {[%emt 0:00:44]} 29. Rd2 {[%emt 0:00:07]} Rd8 {[%emt 0:01:38]} 30. Re2 {[%emt 0:08:34]} Rd4 {[%emt 0:04:25]} 31. Rxa5 {[%emt 0:00:49]} c4 {[%emt 0:06:57]} 32. Ra6 {[%emt 0:01:22]} Kf8 {[%emt 0:01:32]} 33. Ra5 {[%emt 0:04:50]} Kg7 {[%emt 0:02:37]} 34. Kh2 {[%emt 0:00:23]} Kg6 {[%emt 0:02:14]} 35. g4 {[%emt 0:03:02]} Rd8 {[%emt 0:07:19]} 36. Kg3 {[%emt 0:00:35]} Rd7 {[%emt 0:02:04]} 37. f3 {[%emt 0:03:50]} Rd8 {[%emt 0:00:20]} 38. Ra6 {[%emt 0:01:08]} Kg7 {[%emt 0:01:11]} 39. Rc6 {[%emt 0:00:31]} Ra8 {[%emt 0:01:06]} 40. h4 {[%emt 0:03:36]} Ra1 {[%emt 0:03:41]} 41. Rc7 {[%emt 0:03:51]} Rc1 {[%emt 0:02:27]} 42. hxg5 {[%emt 0:03:40]} hxg5 {[%emt 0:00:05]} 43. Re5 {[%emt 0:03:13]} Rcxc2 {[%emt 0:02:53]} 44. Rxg5+ {[%emt 0:00:11]} Kf8 {[%emt 0:00:14]} 45. Ne4 {[%emt 0:00:15]} f5 {[%emt 0:01:53]} 46. Nc5 {[%emt 0:01:14]} Re2 {[%emt 0:00:58]} 47. Nxe6+ {[%emt 0:00:32]} Rxe6 {[%emt 0:00:07]} 48. Rxf5+ {[%emt 0:00:05]} Kg8 {[%emt 0:00:24]} 49. Ra5 {[%emt 0:00:14]} Re8 {[%emt 0:00:19]} 50. Rxc4 {[%emt 0:00:05]} Rb3 {[%emt 0:00:07]} 51. Rf5 {[%emt 0:00:14]} Rf8 {[%emt 0:00:10]} 52. Rxf8+ {[%emt 0:00:06]} Kxf8 {[%emt 0:00:04]} 53. Kf4 {[%emt 0:00:12]} 1-0

[Event "Irish Championship 2020"]
[Site "Dublin"]
[Date "2020.08.09"]
[Round "9.5"]
[White "Collins, Adam"]
[Black "Kanyamarala, Trisha"]
[Result "1/2-1/2"]
[ECO "B22"]
[WhiteElo "1760"]
[BlackElo "2193"]
[Annotator "ChessBase"]
[PlyCount "56"]
[EventDate "2020.08.01"]
[EventType "swiss"]
[EventCountry "IRL"]
[SourceTitle "playchess.com"]
[Source "ChessBase"]
[SourceQuality "1"]
[TimeControl "8100+35"]

1. e4 {[%emt 0:00:00]} c5 {[%emt 0:00:00]} 2. c3 {[%emt 0:00:00]} Nf6 {[%emt 0:00:00]} 3. e5 {[%emt 0:00:00]} Nd5 {[%emt 0:00:00]} 4. d4 {[%emt 0:00:00]} cxd4 {[%emt 0:00:25]} 5. Nf3 {[%emt 0:00:00]} Nc6 {[%emt 0:00:54]} 6. cxd4 {[%emt 0:00:00]} d6 {[%emt 0:00:56]} 7. Bc4 {[%emt 0:00:00]} Nb6 {[%emt 0:01:09]} 8. Bb3 {[%emt 0:00:00]} dxe5 {[%emt 0:05:13]} 9. d5 {[%emt 0:00:01]} Na5 {[%emt 0:06:36]} 10. Nc3 {[%emt 0:00:23]} Nxb3 {[%emt 0:03:28]} 11. Qxb3 {[%emt 0:00:18]} f6 {[%emt 0:01:17]} 12. Be3 {[%emt 0:02:38]} g6 {[%emt 0:07:58]} 13. Rc1 {[%emt 0:14:09]} Bd7 {[%emt 0:15:49]} 14. O-O {[%emt 0:15:30]} Bg7 {[%emt 0:05:34]} 15. d6 {[%emt 0:27:39]} exd6 {[%emt 0:36:26]} 16. Rfd1 {[%emt 0:10:13]} Bc6 {[%emt 0:02:39]} 17. Bc5 {[%emt 0:08:14]} Nc8 {[%emt 0:04:34]} 18. Ba3 {[%emt 0:09:02]} Qe7 {[%emt 0:03:44]} 19. Nd4 {[%emt 0:07:49]} Bh6 {[%emt 0:05:01]} 20. Nxc6 {[%emt 0:02:48]} bxc6 {[%emt 0:00:13]} 21. Rc2 {[%emt 0:00:16]} Qf7 {[%emt 0:04:32]} 22. Ne4 {[%emt 0:04:37]} Qxb3 {[%emt 0:10:09]} 23. axb3 {[%emt 0:00:02]} O-O {[%emt 0:04:02]} 24. Rxc6 {[%emt 0:04:43]} Bg7 {[%emt 0:10:14]} 25. Nxd6 {[%emt 0:02:03]} Rd8 {[%emt 0:02:02]} 26. Rdc1 {[%emt 0:01:50]} Nxd6 {[%emt 0:03:11]} 27. Bxd6 {[%emt 0:01:51]} Bh6 {[%emt 0:00:42]} 28. Ra1 {[%emt 0:03:47]} Rac8 {[%emt 0:07:30]} 1/2-1/2

[Event "Irish Championship 2020"]
[Site "Dublin"]
[Date "2020.08.09"]
[Round "9.6"]
[White "Wallace, John Paul"]
[Black "O'Connell, Gerard"]
[Result "1-0"]
[ECO "B76"]
[WhiteElo "2346"]
[BlackElo "2075"]
[Annotator "ChessBase"]
[PlyCount "53"]
[EventDate "2020.08.01"]
[EventType "swiss"]
[EventCountry "IRL"]
[SourceTitle "playchess.com"]
[Source "ChessBase"]
[SourceQuality "1"]
[TimeControl "8100+35"]

1. e4 {[%emt 0:00:00]} c5 {[%emt 0:00:00]} 2. Nf3 {[%emt 0:00:00]} d6 {[%emt 0:00:00]} 3. d4 {[%emt 0:00:00]} cxd4 {[%emt 0:00:00]} 4. Nxd4 {[%emt 0:00:00]} Nf6 {[%emt 0:00:00]} 5. Nc3 {[%emt 0:00:00]} g6 {[%emt 0:00:00]} 6. Be3 {[%emt 0:00:00]} Bg7 {[%emt 0:00:00]} 7. f3 {[%emt 0:00:26]} Nc6 {[%emt 0:00:00]} 8. Qd2 {[%emt 0:00:05]} O-O {[%emt 0:00:03]} 9. O-O-O {[%emt 0:00:06]} Bd7 {[%emt 0:00:19]} 10. h4 {[%emt 0:03:00]} Rc8 {[%emt 0:00:31]} 11. Kb1 {[%emt 0:01:38]} Ne5 {[%emt 0:01:04]} 12. Nd5 {[%emt 0:03:34]} Nxd5 {[%emt 0:12:02]} 13. exd5 {[%emt 0:01:44]} Rc5 {[%emt 0:24:35]} 14. Nb3 {[%emt 0:23:34]} Nc4 {[%emt 0:06:37]} 15. Bxc4 {[%emt 0:00:20]} Rxc4 {[%emt 0:00:02]} 16. g4 {[%emt 0:02:42]} f5 {[%emt 0:11:02]} 17. h5 {[%emt 0:21:52]} fxg4 {[%emt 0:26:09]} 18. hxg6 {[%emt 0:02:41]} hxg6 {[%emt 0:00:24]} 19. Nd4 {[%emt 0:38:38]} Bf5 {[%emt 0:18:52]} 20. Nxf5 {[%emt 0:05:29]} Rxf5 {[%emt 0:16:45]} 21. b3 {[%emt 0:01:38]} Bc3 {[%emt 0:14:42]} 22. Qd3 {[%emt 0:04:14]} b5 {[%emt 0:00:15]} 23. fxg4 {[%emt 0:02:35]} Rf6 {[%emt 0:07:43]} 24. Rh6 {[%emt 0:03:14]} Qa5 {[%emt 0:03:13]} 25. Rdh1 {[%emt 0:03:22]} Kf7 {[%emt 0:02:29]} 26. Rh8 {[%emt 0:12:32]} Rf3 {[%emt 0:00:30]} 27. Bd4 {[%emt 0:04:19]} 1-0